[Event "Late-Titled-Tuesday-Blitz-May-07-2024"]
[Site "Chess.com"]
[Date "2024.05.07"]
[Round "4"]
[White "betta2004"]
[Black "GMthekingindian"]
[Result "0-1"]
[WhiteElo "2477"]
[BlackElo "2271"]
[TimeControl "180+1"]
[EndTime "14:39:25 PDT"]
[Termination "GMthekingindian won by checkmate"]

1. d4 {[%clk 0:02:44]} 1... d5 {[%clk 0:02:58.7]} 2. c4 {[%clk 0:02:20.3]} 2...
e6 {[%clk 0:02:58.2]} 3. Nc3 {[%clk 0:02:13.3]} 3... Nf6 {[%clk 0:02:57.9]} 4.
Bg5 {[%clk 0:02:12.5]} 4... Be7 {[%clk 0:02:56.6]} 5. Nf3 {[%clk 0:02:11.7]}
5... O-O {[%clk 0:02:55.2]} 6. e3 {[%clk 0:02:09.5]} 6... Nbd7 {[%clk
0:02:55.7]} 7. Bd3 {[%clk 0:01:56.7]} 7... h6 {[%clk 0:02:42.9]} 8. Bh4 {[%clk
0:01:54.5]} 8... dxc4 {[%clk 0:02:42.1]} 9. Bxc4 {[%clk 0:01:54.1]} 9... a6
{[%clk 0:02:43]} 10. O-O {[%clk 0:01:51]} 10... c5 {[%clk 0:02:42.6]} 11. a4
{[%clk 0:01:46.7]} 11... cxd4 {[%clk 0:02:35.8]} 12. exd4 {[%clk 0:01:44.4]}
12... Nb6 {[%clk 0:02:26.2]} 13. Bd3 {[%clk 0:01:43.3]} 13... Nbd5 {[%clk
0:02:26.9]} 14. Ne5 {[%clk 0:01:37.3]} 14... Nd7 {[%clk 0:02:06.7]} 15. Bxe7
{[%clk 0:01:26.9]} 15... Nxe7 {[%clk 0:01:58.7]} 16. Qf3 {[%clk 0:01:16.1]}
16... Nf6 {[%clk 0:01:46]} 17. Rfd1 {[%clk 0:01:07.2]} 17... Ned5 {[%clk
0:01:43.5]} 18. Rac1 {[%clk 0:01:06.2]} 18... Bd7 {[%clk 0:01:35.3]} 19. Bc2
{[%clk 0:00:49.8]} 19... Rc8 {[%clk 0:01:28.7]} 20. Ne4 {[%clk 0:00:34.1]} 20...
Bc6 {[%clk 0:00:53.2]} 21. Nc5 {[%clk 0:00:28.6]} 21... Nb4 {[%clk 0:00:45.7]}
22. Nxc6 {[%clk 0:00:24.4]} 22... Nxc6 {[%clk 0:00:28.9]} 23. Qd3 {[%clk
0:00:16.3]} 23... Nb4 {[%clk 0:00:22.7]} 24. Qf3 {[%clk 0:00:11.7]} 24... Nxc2
{[%clk 0:00:22.7]} 25. Rxc2 {[%clk 0:00:12.6]} 25... b6 {[%clk 0:00:10.7]} 26.
Nb7 {[%clk 0:00:03.4]} 26... Qe7 {[%clk 0:00:10.4]} 27. Rdc1 {[%clk 0:00:03.7]}
27... Rxc2 {[%clk 0:00:08.1]} 28. Rxc2 {[%clk 0:00:04.6]} 28... Nd5 {[%clk
0:00:08.7]} 29. a5 {[%clk 0:00:01.7]} 29... Qxb7 {[%clk 0:00:08.2]} 30. axb6
{[%clk 0:00:02]} 30... Qxb6 {[%clk 0:00:07.9]} 31. h4 {[%clk 0:00:02.9]} 31...
Qb4 {[%clk 0:00:05.9]} 32. g3 {[%clk 0:00:02.8]} 32... Qe1+ {[%clk 0:00:05.7]}
33. Kg2 {[%clk 0:00:03.2]} 33... Qb4 {[%clk 0:00:06.2]} 34. Qd3 {[%clk
0:00:03.2]} 34... Qb5 {[%clk 0:00:05.2]} 35. Qd2 {[%clk 0:00:02.9]} 35... Rb8
{[%clk 0:00:05.3]} 36. Rc5 {[%clk 0:00:00.9]} 36... Qb7 {[%clk 0:00:05.5]} 37.
Qc2 {[%clk 0:00:00.7]} 37... Ne3+ {[%clk 0:00:04.2]} 38. Kg1 {[%clk 0:00:01.2]}
38... Nxc2 {[%clk 0:00:04.7]} 39. d5 {[%clk 0:00:00.6]} 39... Qxb2 {[%clk
0:00:05.6]} 40. Rc7 {[%clk 0:00:00.9]} 40... Qc1+ {[%clk 0:00:05.5]} 41. Kg2
{[%clk 0:00:01.8]} 41... Qd2 {[%clk 0:00:04.9]} 42. d6 {[%clk 0:00:02.7]} 42...
Qxd6 {[%clk 0:00:04.1]} 43. Rxc2 {[%clk 0:00:03.5]} 43... Qd5+ {[%clk
0:00:04.2]} 44. Kf1 {[%clk 0:00:03.5]} 44... Rb1+ {[%clk 0:00:04.8]} 45. Ke2
{[%clk 0:00:03.8]} 45... Qe4+ {[%clk 0:00:04.8]} 46. Kd2 {[%clk 0:00:04]} 46...
Rf1 {[%clk 0:00:03.3]} 47. Rc8+ {[%clk 0:00:04.3]} 47... Kh7 {[%clk 0:00:03.9]}
48. Rc3 {[%clk 0:00:05.1]} 48... Rxf2+ {[%clk 0:00:04]} 49. Kc1 {[%clk 0:00:06]}
49... Qe1# {[%clk 0:00:04.2]} 0-1

[Event "Late-Titled-Tuesday-Blitz-May-07-2024"]
[Site "Chess.com"]
[Date "2024.05.07"]
[Round "4"]
[White "KNVB"]
[Black "karinachess1"]
[Result "1-0"]
[WhiteElo "2805"]
[BlackElo "2585"]
[TimeControl "180+1"]
[EndTime "14:39:27 PDT"]
[Termination "KNVB won by resignation"]

1. a4 {[%clk 0:03:00.9]} 1... e5 {[%clk 0:02:59.1]} 2. Ra3 {[%clk 0:03:01.7]}
2... Bxa3 {[%clk 0:02:58.4]} 3. Nxa3 {[%clk 0:03:02.5]} 3... Nf6 {[%clk
0:02:58.4]} 4. b3 {[%clk 0:03:03.1]} 4... Nc6 {[%clk 0:02:58.1]} 5. Bb2 {[%clk
0:03:03.6]} 5... d5 {[%clk 0:02:57.8]} 6. e3 {[%clk 0:03:03.7]} 6... O-O {[%clk
0:02:56.7]} 7. Qa1 {[%clk 0:02:57.4]} 7... Re8 {[%clk 0:02:51.9]} 8. Ne2 {[%clk
0:02:41.1]} 8... Qe7 {[%clk 0:02:44.5]} 9. f3 {[%clk 0:02:21.9]} 9... Be6 {[%clk
0:02:27.4]} 10. Ng3 {[%clk 0:01:51.4]} 10... d4 {[%clk 0:02:22.1]} 11. Bb5
{[%clk 0:01:35.7]} 11... dxe3 {[%clk 0:02:15.1]} 12. dxe3 {[%clk 0:01:36.6]}
12... Qc5 {[%clk 0:02:14.9]} 13. Kf2 {[%clk 0:01:17.4]} 13... Nd7 {[%clk
0:01:26]} 14. Ne4 {[%clk 0:01:03.1]} 14... Qe7 {[%clk 0:01:26]} 15. Nc4 {[%clk
0:00:28.9]} 15... f6 {[%clk 0:01:25.9]} 16. Bxc6 {[%clk 0:00:17.2]} 16... bxc6
{[%clk 0:01:25.7]} 17. Ba3 {[%clk 0:00:13.9]} 17... Qf7 {[%clk 0:01:25.8]} 18.
Na5 {[%clk 0:00:06.2]} 18... Bd5 {[%clk 0:01:13.6]} 19. Nc5 {[%clk 0:00:05.8]}
19... Nxc5 {[%clk 0:01:01.5]} 20. Bxc5 {[%clk 0:00:06.7]} 20... e4 {[%clk
0:00:58.2]} 21. f4 {[%clk 0:00:07.1]} 21... Red8 {[%clk 0:00:56.1]} 22. Rd1
{[%clk 0:00:01.9]} 22... Qe8 {[%clk 0:00:51.7]} 23. Bd4 {[%clk 0:00:01.7]} 23...
Bf7 {[%clk 0:00:49.7]} 24. Qc3 {[%clk 0:00:01.9]} 24... Bd5 {[%clk 0:00:47.2]}
25. h3 {[%clk 0:00:01.8]} 25... a6 {[%clk 0:00:45.7]} 26. Qc5 {[%clk 0:00:01.8]}
26... Rd6 {[%clk 0:00:33.9]} 27. Re1 {[%clk 0:00:02.1]} 27... Bf7 {[%clk
0:00:29.1]} 28. Kg1 {[%clk 0:00:02.3]} 28... Rd5 {[%clk 0:00:28.4]} 29. Qc3
{[%clk 0:00:01.7]} 29... Rd6 {[%clk 0:00:21.2]} 30. Bc5 {[%clk 0:00:02]} 30...
Re6 {[%clk 0:00:19.7]} 31. Bd4 {[%clk 0:00:02.6]} 31... Rd8 {[%clk 0:00:18.9]}
32. Nb7 {[%clk 0:00:03]} 32... Rd5 {[%clk 0:00:18.7]} 33. Nc5 {[%clk 0:00:03.5]}
33... Red6 {[%clk 0:00:18]} 34. Nxa6 {[%clk 0:00:02.9]} 34... Be6 {[%clk
0:00:09.7]} 35. Nxc7 {[%clk 0:00:03.3]} 35... Qd7 {[%clk 0:00:08.9]} 36. Nxd5
{[%clk 0:00:03.2]} 36... Rxd5 {[%clk 0:00:08.7]} 37. a5 {[%clk 0:00:02.7]} 37...
Bxh3 {[%clk 0:00:05.3]} 38. gxh3 {[%clk 0:00:02.3]} 38... Qxh3 {[%clk
0:00:06.2]} 39. Qd2 {[%clk 0:00:02.9]} 39... Rh5 {[%clk 0:00:04.4]} 40. Qg2
{[%clk 0:00:03.4]} 40... Qh4 {[%clk 0:00:04.6]} 41. Ra1 {[%clk 0:00:02.1]} 41...
Kf7 {[%clk 0:00:02.8]} 42. a6 {[%clk 0:00:02.4]} 42... g5 {[%clk 0:00:03.2]} 43.
f5 {[%clk 0:00:01.7]} 43... g4 {[%clk 0:00:02.3]} 44. a7 {[%clk 0:00:02.4]}
44... Rxf5 {[%clk 0:00:02.1]} 45. a8=Q {[%clk 0:00:02.7]} 45... Rf3 {[%clk
0:00:02.2]} 46. Ra7+ {[%clk 0:00:02.5]} 46... Kg6 {[%clk 0:00:02.6]} 47. Qg8+
{[%clk 0:00:02.9]} 47... Kh6 {[%clk 0:00:02.4]} 48. Qg7+ {[%clk 0:00:02.7]}
48... Kh5 {[%clk 0:00:02.3]} 49. Qxh7+ {[%clk 0:00:03.2]} 1-0

[Event "Late-Titled-Tuesday-Blitz-May-07-2024"]
[Site "Chess.com"]
[Date "2024.05.07"]
[Round "4"]
[White "Maitreia"]
[Black "Caracal3000"]
[Result "1-0"]
[WhiteElo "2704"]
[BlackElo "2503"]
[TimeControl "180+1"]
[EndTime "14:39:27 PDT"]
[Termination "Maitreia won by checkmate"]

1. c4 {[%clk 0:03:00.9]} 1... e6 {[%clk 0:02:59.6]} 2. g3 {[%clk 0:02:59.9]}
2... d5 {[%clk 0:03:00.2]} 3. Nf3 {[%clk 0:03:00.2]} 3... Nf6 {[%clk 0:03:01]}
4. Bg2 {[%clk 0:03:00.4]} 4... Be7 {[%clk 0:03:01.8]} 5. O-O {[%clk 0:03:01]}
5... O-O {[%clk 0:03:02.5]} 6. b3 {[%clk 0:03:01.6]} 6... b6 {[%clk 0:02:52.8]}
7. Bb2 {[%clk 0:03:01.6]} 7... Bb7 {[%clk 0:02:51.9]} 8. e3 {[%clk 0:03:01.9]}
8... Nbd7 {[%clk 0:02:49.4]} 9. Nc3 {[%clk 0:03:02]} 9... c5 {[%clk 0:02:47.2]}
10. Qe2 {[%clk 0:03:00.5]} 10... dxc4 {[%clk 0:02:39.3]} 11. bxc4 {[%clk
0:03:01.4]} 11... Ne4 {[%clk 0:02:36.6]} 12. Nxe4 {[%clk 0:02:46.1]} 12... Bxe4
{[%clk 0:02:37.5]} 13. d3 {[%clk 0:02:45.2]} 13... Bb7 {[%clk 0:02:33.3]} 14. a4
{[%clk 0:02:45.1]} 14... Bf6 {[%clk 0:02:29.9]} 15. a5 {[%clk 0:02:45.2]} 15...
Bxb2 {[%clk 0:02:25]} 16. Qxb2 {[%clk 0:02:46.1]} 16... Qf6 {[%clk 0:02:25.7]}
17. Qxf6 {[%clk 0:02:44.5]} 17... Nxf6 {[%clk 0:02:25.1]} 18. Ne5 {[%clk
0:02:41.2]} 18... Bxg2 {[%clk 0:02:23]} 19. Kxg2 {[%clk 0:02:42.1]} 19... Rad8
{[%clk 0:01:47.4]} 20. Rfb1 {[%clk 0:02:35.3]} 20... Rd6 {[%clk 0:01:46.7]} 21.
axb6 {[%clk 0:02:29.7]} 21... axb6 {[%clk 0:01:47.6]} 22. Ra6 {[%clk 0:02:27.7]}
22... Rb8 {[%clk 0:01:29.9]} 23. Kf3 {[%clk 0:02:25]} 23... h6 {[%clk
0:01:18.5]} 24. Ra7 {[%clk 0:02:20.9]} 24... Nh7 {[%clk 0:00:56.3]} 25. Ke2
{[%clk 0:02:10.3]} 25... f6 {[%clk 0:00:49.1]} 26. Ng6 {[%clk 0:02:10.2]} 26...
Rbd8 {[%clk 0:00:46.1]} 27. Rb3 {[%clk 0:02:02.5]} 27... Rb8 {[%clk 0:00:36.5]}
28. h4 {[%clk 0:01:57.9]} 28... Nf8 {[%clk 0:00:36.7]} 29. Nf4 {[%clk
0:01:55.5]} 29... Nd7 {[%clk 0:00:34.8]} 30. Nxe6 {[%clk 0:01:50.6]} 30... Ne5
{[%clk 0:00:34.6]} 31. Nxc5 {[%clk 0:01:44.6]} 31... Rbd8 {[%clk 0:00:31.3]} 32.
Nb7 {[%clk 0:01:18.4]} 32... R6d7 {[%clk 0:00:27.2]} 33. Nxd8 {[%clk 0:01:14.8]}
33... Rxa7 {[%clk 0:00:27.5]} 34. Rb2 {[%clk 0:00:51]} 34... Rd7 {[%clk
0:00:19.1]} 35. Ne6 {[%clk 0:00:50.6]} 35... Rxd3 {[%clk 0:00:17.1]} 36. Rxb6
{[%clk 0:00:47.8]} 36... Rc3 {[%clk 0:00:13.1]} 37. Rb7 {[%clk 0:00:43.5]} 37...
Rc2+ {[%clk 0:00:10.4]} 38. Kd1 {[%clk 0:00:38.6]} 38... Rxf2 {[%clk 0:00:08.9]}
39. Rxg7+ {[%clk 0:00:36.7]} 39... Kh8 {[%clk 0:00:08.9]} 40. Rc7 {[%clk
0:00:34.1]} 40... Rf3 {[%clk 0:00:08.3]} 41. Kd2 {[%clk 0:00:31.5]} 41... Rxg3
{[%clk 0:00:08.2]} 42. c5 {[%clk 0:00:31.5]} 42... Nc4+ {[%clk 0:00:05]} 43. Kd3
{[%clk 0:00:26.4]} 43... Nxe3 {[%clk 0:00:05.3]} 44. Ke4 {[%clk 0:00:26.6]}
44... Ng4 {[%clk 0:00:03]} 45. Kf5 {[%clk 0:00:22.2]} 45... Rg1 {[%clk
0:00:03.1]} 46. Nf4 {[%clk 0:00:20.5]} 46... Ne3+ {[%clk 0:00:02.9]} 47. Kxf6
{[%clk 0:00:19.6]} 47... Rf1 {[%clk 0:00:03.2]} 48. Rc8+ {[%clk 0:00:19.6]}
48... Kh7 {[%clk 0:00:03.4]} 49. Ke5 {[%clk 0:00:20.5]} 49... Re1 {[%clk
0:00:01.5]} 50. Rc7+ {[%clk 0:00:18.4]} 50... Kh8 {[%clk 0:00:01.5]} 51. Kf6
{[%clk 0:00:19]} 51... Ng2 {[%clk 0:00:00.8]} 52. Ng6+ {[%clk 0:00:17.7]} 52...
Kg8 {[%clk 0:00:00.4]} 53. Rg7# {[%clk 0:00:18.6]} 1-0

[Event "Late-Titled-Tuesday-Blitz-May-07-2024"]
[Site "Chess.com"]
[Date "2024.05.07"]
[Round "4"]
[White "Chess_Star1234"]
[Black "ritanovikova"]
[Result "1-0"]
[WhiteElo "2486"]
[BlackElo "2183"]
[TimeControl "180+1"]
[EndTime "14:39:31 PDT"]
[Termination "Chess_Star1234 won on time"]

1. d4 {[%clk 0:02:58.8]} 1... g6 {[%clk 0:02:59.1]} 2. c4 {[%clk 0:02:57.8]}
2... Bg7 {[%clk 0:03:00]} 3. e4 {[%clk 0:02:58.3]} 3... d6 {[%clk 0:03:00.1]} 4.
Ne2 {[%clk 0:02:58.6]} 4... Nc6 {[%clk 0:03:00.7]} 5. Nbc3 {[%clk 0:02:58.8]}
5... e5 {[%clk 0:03:00.3]} 6. d5 {[%clk 0:02:58.8]} 6... Nd4 {[%clk 0:03:00.6]}
7. Be3 {[%clk 0:02:59.1]} 7... Nxe2 {[%clk 0:02:59.4]} 8. Bxe2 {[%clk 0:02:59]}
8... f5 {[%clk 0:02:59.3]} 9. f3 {[%clk 0:02:56.7]} 9... Nf6 {[%clk 0:02:59.4]}
10. Qd2 {[%clk 0:02:54.5]} 10... O-O {[%clk 0:02:59]} 11. h3 {[%clk 0:02:47.9]}
11... fxe4 {[%clk 0:02:55.4]} 12. fxe4 {[%clk 0:02:42.4]} 12... Nh5 {[%clk
0:02:37.1]} 13. O-O-O {[%clk 0:02:31.1]} 13... Ng3 {[%clk 0:01:58]} 14. Rhg1
{[%clk 0:02:21.3]} 14... Nxe2+ {[%clk 0:01:42.7]} 15. Qxe2 {[%clk 0:02:22.2]}
15... a6 {[%clk 0:01:39.7]} 16. c5 {[%clk 0:01:59.1]} 16... Rb8 {[%clk
0:01:17.4]} 17. Kb1 {[%clk 0:01:43.2]} 17... b6 {[%clk 0:01:03.8]} 18. c6 {[%clk
0:01:30.2]} 18... b5 {[%clk 0:00:47.3]} 19. Rdf1 {[%clk 0:01:18.9]} 19... b4
{[%clk 0:00:23.6]} 20. Rxf8+ {[%clk 0:01:04.4]} 20... Qxf8 {[%clk 0:00:05.4]}
21. Rf1 {[%clk 0:00:50.5]} 21... Qe7 {[%clk 0:00:05.4]} 22. Nd1 {[%clk
0:00:49.1]} 22... a5 {[%clk 0:00:05.6]} 23. Nf2 {[%clk 0:00:42.2]} 23... Ra8
{[%clk 0:00:05.5]} 24. Ng4 {[%clk 0:00:38.5]} 24... Ba6 {[%clk 0:00:04]} 25. Qe1
{[%clk 0:00:28.3]} 25... Bxf1 {[%clk 0:00:04.1]} 26. Qxf1 {[%clk 0:00:29.2]}
26... h5 {[%clk 0:00:04]} 27. Nf2 {[%clk 0:00:28.7]} 27... Rf8 {[%clk
0:00:03.8]} 28. Qa6 {[%clk 0:00:29.3]} 28... Bf6 {[%clk 0:00:01.2]} 29. Qxa5
{[%clk 0:00:15.2]} 29... b3 {[%clk 0:00:01.6]} 30. axb3 {[%clk 0:00:14.4]} 30...
Bg5 {[%clk 0:00:02.1]} 31. Qe1 {[%clk 0:00:09.3]} 31... Bxe3 {[%clk 0:00:02.4]}
32. Qxe3 {[%clk 0:00:10.2]} 32... Qf6 {[%clk 0:00:02.4]} 33. Nd3 {[%clk
0:00:10.1]} 33... Qf1+ {[%clk 0:00:02.3]} 34. Kc2 {[%clk 0:00:09.3]} 34... Qxg2+
{[%clk 0:00:03.2]} 35. Kc3 {[%clk 0:00:09.7]} 35... Rf3 {[%clk 0:00:03.4]} 36.
Qh6 {[%clk 0:00:06.5]} 36... Rxh3 {[%clk 0:00:02.5]} 37. Kc4 {[%clk 0:00:03.5]}
37... Qg3 {[%clk 0:00:02.8]} 38. Nb4 {[%clk 0:00:02.9]} 38... Qxb3+ {[%clk
0:00:02.8]} 39. Kb5 {[%clk 0:00:03.7]} 39... Rh4 {[%clk 0:00:02.5]} 40. Qxg6+
{[%clk 0:00:04.2]} 40... Kf8 {[%clk 0:00:03.1]} 41. Qf6+ {[%clk 0:00:05]} 41...
Kg8 {[%clk 0:00:03]} 42. Qxh4 {[%clk 0:00:05.8]} 42... Qd3+ {[%clk 0:00:03.4]}
43. Nxd3 {[%clk 0:00:05.7]} 1-0

[Event "Late-Titled-Tuesday-Blitz-May-07-2024"]
[Site "Chess.com"]
[Date "2024.05.07"]
[Round "4"]
[White "DucksParadise"]
[Black "FMOlexandrProhorov"]
[Result "1-0"]
[WhiteElo "2568"]
[BlackElo "2306"]
[TimeControl "180+1"]
[EndTime "14:39:32 PDT"]
[Termination "DucksParadise won on time"]

1. a4 {[%clk 0:03:00.9]} 1... a5 {[%clk 0:02:52.6]} 2. Ra3 {[%clk 0:02:59.9]}
2... Na6 {[%clk 0:02:49.8]} 3. b3 {[%clk 0:02:58]} 3... e5 {[%clk 0:02:48.6]} 4.
Bb2 {[%clk 0:02:57.7]} 4... Bxa3 {[%clk 0:02:45.9]} 5. Nxa3 {[%clk 0:02:58.6]}
5... d6 {[%clk 0:02:46.5]} 6. e3 {[%clk 0:02:58.3]} 6... Nf6 {[%clk 0:02:46.8]}
7. g3 {[%clk 0:02:58.4]} 7... O-O {[%clk 0:02:46.7]} 8. Bg2 {[%clk 0:02:58]}
8... c6 {[%clk 0:02:47.3]} 9. h3 {[%clk 0:02:57.8]} 9... Be6 {[%clk 0:02:45.9]}
10. Ne2 {[%clk 0:02:56.9]} 10... Rb8 {[%clk 0:02:45.2]} 11. O-O {[%clk
0:02:55.8]} 11... Qd7 {[%clk 0:02:44.8]} 12. Kh2 {[%clk 0:02:55.3]} 12... b5
{[%clk 0:02:45.4]} 13. axb5 {[%clk 0:02:52.1]} 13... cxb5 {[%clk 0:02:46.3]} 14.
f4 {[%clk 0:02:50.8]} 14... b4 {[%clk 0:02:35.3]} 15. Nc4 {[%clk 0:02:47.6]}
15... Bxc4 {[%clk 0:02:35.4]} 16. bxc4 {[%clk 0:02:48]} 16... Rfe8 {[%clk
0:02:30.7]} 17. fxe5 {[%clk 0:02:47.5]} 17... dxe5 {[%clk 0:02:30.5]} 18. Rxf6
{[%clk 0:02:33.8]} 18... gxf6 {[%clk 0:02:28.1]} 19. g4 {[%clk 0:02:34.2]} 19...
a4 {[%clk 0:02:23.5]} 20. Ng3 {[%clk 0:02:25.7]} 20... a3 {[%clk 0:02:12.9]} 21.
Ba1 {[%clk 0:02:25.5]} 21... Rbd8 {[%clk 0:01:58]} 22. Bd5 {[%clk 0:02:18.9]}
22... Nc7 {[%clk 0:01:53.7]} 23. Nh5 {[%clk 0:02:10.8]} 23... Nxd5 {[%clk
0:01:49.8]} 24. cxd5 {[%clk 0:02:11.7]} 24... Qd6 {[%clk 0:01:47.9]} 25. e4
{[%clk 0:02:08.6]} 25... Kf8 {[%clk 0:01:44.1]} 26. Qf3 {[%clk 0:02:07.4]} 26...
Ke7 {[%clk 0:01:43.4]} 27. d4 {[%clk 0:02:03.5]} 27... Rc8 {[%clk 0:01:40.5]}
28. Ng7 {[%clk 0:01:50.3]} 28... Rxc2+ {[%clk 0:01:35.7]} 29. Kg3 {[%clk
0:01:49.6]} 29... Kd8 {[%clk 0:01:24.5]} 30. dxe5 {[%clk 0:01:44.8]} 30... Rxe5
{[%clk 0:01:15.1]} 31. Kh4 {[%clk 0:01:42]} 31... Qb6 {[%clk 0:01:00.4]} 32.
Bxe5 {[%clk 0:01:26.5]} 32... fxe5 {[%clk 0:00:59.1]} 33. Ne6+ {[%clk
0:00:39.6]} 33... fxe6 {[%clk 0:00:47.9]} 34. Qf8+ {[%clk 0:00:40.5]} 34... Kc7
{[%clk 0:00:48.2]} 35. Qf7+ {[%clk 0:00:31.9]} 35... Kb8 {[%clk 0:00:48.3]} 36.
dxe6 {[%clk 0:00:32.2]} 36... Rc8 {[%clk 0:00:39.9]} 37. e7 {[%clk 0:00:29.6]}
37... Qg6 {[%clk 0:00:23.2]} 38. Qd5 {[%clk 0:00:14.6]} 38... Qf6+ {[%clk
0:00:15.6]} 39. Kh5 {[%clk 0:00:12.1]} 39... Qxe7 {[%clk 0:00:15.3]} 40. Qb5+
{[%clk 0:00:11.9]} 40... Qb7 {[%clk 0:00:12.6]} 41. Qxe5+ {[%clk 0:00:11.3]}
41... Rc7 {[%clk 0:00:11.7]} 42. Qe8+ {[%clk 0:00:11.3]} 42... Ka7 {[%clk
0:00:12]} 43. Qa4+ {[%clk 0:00:11.4]} 43... Qa6 {[%clk 0:00:12]} 44. Qxb4 {[%clk
0:00:11.2]} 44... a2 {[%clk 0:00:09.5]} 45. Qd4+ {[%clk 0:00:11.4]} 45... Kb7
{[%clk 0:00:07.5]} 46. Qd5+ {[%clk 0:00:11.6]} 46... Rc6 {[%clk 0:00:06.1]} 47.
Qb3+ {[%clk 0:00:11]} 47... Rb6 {[%clk 0:00:04.8]} 48. Qf7+ {[%clk 0:00:11]}
48... Kc6 {[%clk 0:00:05.3]} 49. Qd5+ {[%clk 0:00:10.4]} 49... Kc7 {[%clk
0:00:00.7]} 50. Qf7+ {[%clk 0:00:10.5]} 1-0

[Event "Late-Titled-Tuesday-Blitz-May-07-2024"]
[Site "Chess.com"]
[Date "2024.05.07"]
[Round "4"]
[White "Vazabanga"]
[Black "NajdorfPlayerc5"]
[Result "1-0"]
[WhiteElo "2686"]
[BlackElo "2428"]
[TimeControl "180+1"]
[EndTime "14:39:33 PDT"]
[Termination "Vazabanga won on time"]

1. d4 {[%clk 0:02:59.5]} 1... Nf6 {[%clk 0:02:58.1]} 2. c4 {[%clk 0:02:59.3]}
2... a6 {[%clk 0:02:56.4]} 3. g3 {[%clk 0:02:59.1]} 3... c5 {[%clk 0:02:48.6]}
4. Nf3 {[%clk 0:02:39.4]} 4... cxd4 {[%clk 0:02:42.5]} 5. Nxd4 {[%clk
0:02:39.1]} 5... e5 {[%clk 0:02:36.4]} 6. Nc2 {[%clk 0:02:37.3]} 6... Nc6 {[%clk
0:02:34.3]} 7. Bg2 {[%clk 0:02:37.1]} 7... Bc5 {[%clk 0:02:33.7]} 8. O-O {[%clk
0:02:36.4]} 8... O-O {[%clk 0:02:32.7]} 9. Nc3 {[%clk 0:02:34.5]} 9... d6 {[%clk
0:02:09.3]} 10. Bg5 {[%clk 0:02:33.2]} 10... h6 {[%clk 0:02:08.7]} 11. Bxf6
{[%clk 0:02:23.8]} 11... Qxf6 {[%clk 0:02:09.6]} 12. b4 {[%clk 0:02:13.8]} 12...
Bd4 {[%clk 0:01:45.9]} 13. Nxd4 {[%clk 0:02:04.1]} 13... Nxd4 {[%clk 0:01:41.3]}
14. e3 {[%clk 0:01:53.5]} 14... Nf5 {[%clk 0:01:36]} 15. Nd5 {[%clk 0:01:33.8]}
15... Qd8 {[%clk 0:01:35.3]} 16. Rc1 {[%clk 0:01:22.8]} 16... Be6 {[%clk
0:01:32.1]} 17. Qd3 {[%clk 0:01:19.3]} 17... Ne7 {[%clk 0:01:13.9]} 18. Rfd1
{[%clk 0:01:15.5]} 18... Bxd5 {[%clk 0:00:48.2]} 19. Bxd5 {[%clk 0:01:12.3]}
19... Qb6 {[%clk 0:00:44.8]} 20. a3 {[%clk 0:01:05.3]} 20... Rac8 {[%clk
0:00:44.1]} 21. Bg2 {[%clk 0:00:43]} 21... Rfd8 {[%clk 0:00:41.8]} 22. Rc2
{[%clk 0:00:42.5]} 22... Qc7 {[%clk 0:00:35.7]} 23. Rdc1 {[%clk 0:00:41.6]}
23... b6 {[%clk 0:00:33.7]} 24. h4 {[%clk 0:00:37.9]} 24... a5 {[%clk
0:00:32.7]} 25. Qb3 {[%clk 0:00:32.5]} 25... Qa7 {[%clk 0:00:22.2]} 26. h5
{[%clk 0:00:22.9]} 26... axb4 {[%clk 0:00:21]} 27. axb4 {[%clk 0:00:22.6]} 27...
Kf8 {[%clk 0:00:16.1]} 28. Rd1 {[%clk 0:00:22.8]} 28... Qc7 {[%clk 0:00:15.5]}
29. Bh3 {[%clk 0:00:15.3]} 29... f5 {[%clk 0:00:13.8]} 30. Bf1 {[%clk 0:00:15]}
30... b5 {[%clk 0:00:13.1]} 31. c5 {[%clk 0:00:13.4]} 31... d5 {[%clk
0:00:08.5]} 32. Bxb5 {[%clk 0:00:11.8]} 32... Qb7 {[%clk 0:00:06]} 33. Be2
{[%clk 0:00:11.2]} 33... d4 {[%clk 0:00:05.5]} 34. b5 {[%clk 0:00:09.2]} 34...
dxe3 {[%clk 0:00:02.9]} 35. Rxd8+ {[%clk 0:00:09]} 35... Rxd8 {[%clk 0:00:03]}
36. Qxe3 {[%clk 0:00:09.5]} 36... Nd5 {[%clk 0:00:02.1]} 37. Qxe5 {[%clk
0:00:08.5]} 37... Nf6 {[%clk 0:00:02.5]} 38. c6 {[%clk 0:00:07.7]} 38... Qb6
{[%clk 0:00:02.6]} 39. Qc5+ {[%clk 0:00:07.9]} 39... Qxc5 {[%clk 0:00:02.5]} 40.
Rxc5 {[%clk 0:00:08.8]} 40... Ke7 {[%clk 0:00:02.1]} 41. b6 {[%clk 0:00:08.4]}
41... Kd6 {[%clk 0:00:02.1]} 42. c7 {[%clk 0:00:08.6]} 42... Rc8 {[%clk
0:00:02.4]} 43. Rc2 {[%clk 0:00:07.8]} 43... Nd7 {[%clk 0:00:01.9]} 44. b7
{[%clk 0:00:04.7]} 44... Rxc7 {[%clk 0:00:01.5]} 45. Rd2+ {[%clk 0:00:05.3]}
45... Ke6 {[%clk 0:00:01.5]} 46. Rxd7 {[%clk 0:00:05.6]} 46... Rxd7 {[%clk
0:00:01.3]} 47. b8=Q {[%clk 0:00:05.8]} 1-0